lending/lending_fUSD_20241212
["ID","MTS","AMOUNT","RATE_DAILY","PERIOD"]
[345102508,1734018645740,-1000.0,0.0002355,30]
[345102509,1734018645750,-1000.0,0.00023561,2]
[345102511,1734018645760,-500.0,0.00023561,2]
[345102513,1734018645770,-543.52,0.00023561,2]
[345102515,1734018645780,-500.0,0.00023561,2]
[345102517,1734018645790,-508.64748639,0.00023561,2]
[345102519,1734018645800,-1000.0,0.00023594,30]
[345102520,1734018645810,-1000.0,0.00023637,30]
[345102521,1734018645820,-585.56116537,0.00023645,2]
[345102522,1734018645830,-635.88065472,0.00023645,2]
[345102523,1734018645841,-1000.0,0.00023681,30]
[345102524,1734018645851,-740.07,0.00023708,2]
[345102525,1734018645861,-517.62,0.00023708,2]
[345102526,1734018645871,-500.0,0.00023708,2]
[345102527,1734018645881,-592.4,0.00023708,2]
[345102528,1734018645892,-575.29,0.00023715,2]
[345102529,1734018645902,-577.37,0.00023715,2]
[345102530,1734018645912,-500.0,0.00023715,2]
[345102531,1734018645923,-500.0,0.00023715,2]
[345102532,1734018645935,-1378.8,0.00023715,2]
[345102533,1734018646102,-549.21384264,0.00023715,2]
[345102534,1734018646112,-1939.09,0.00023715,2]
[345102535,1734018646122,-403.64,0.00023715,2]
[345102536,1734018646131,-2358.55,0.00023715,2]
[345102537,1734018646143,-771.53,0.00023715,2]
[345102538,1734018646152,-500.0,0.00023715,2]
[345102539,1734018646163,-1430.19,0.00023715,2]
[345102540,1734018646173,-1000.0,0.00023725,30]
[345102541,1734018646183,-1000.0,0.00023769,30]
[345102542,1734018646193,-1000.0,0.00023812,30]
[345102543,1734018646202,-1000.0,0.00023835,2]
[345102544,1734018646212,-500.0,0.00023835,2]
[345102545,1734018646222,-543.52,0.00023835,2]
[345102546,1734018646232,-500.0,0.00023835,2]
[345102547,1734018646242,-1000.0,0.00023856,30]
[345102548,1734018646251,-1000.0,0.000239,30]
[345102549,1734018646261,-2110.0,0.000239,2]
[345102550,1734018646271,-2285.2909128,0.00023907,2]
[345102551,1734018646281,-1000.0,0.00023943,30]
[345102552,1734018646290,-740.07,0.00023982,2]
[345102553,1734018646299,-517.62,0.00023982,2]
[345102554,1734018646309,-241.2294216,0.00023982,2]
[345102555,1734018646318,-592.4,0.00023982,2]
[345102556,1734018646328,-1000.0,0.00023987,30]
[345102557,1734018646337,-575.29,0.00023989,2]
[345102558,1734018646346,-577.37,0.00023989,2]
[345102559,1734018646356,-393.51778917,0.00023989,2]
[345102560,1734018646365,-500.0,0.00023989,2]
[345102561,1734018646374,-1378.8,0.00023989,2]
[345102562,1734018646383,-1939.09,0.00023989,2]
[345102563,1734018646393,-2358.55,0.00023989,2]
[345102564,1734018646402,-771.53,0.00023989,2]
[345102565,1734018646412,-500.0,0.00023989,2]
[345102566,1734018646421,-1430.19,0.00023989,2]
[345102567,1734018646430,-600.0,0.00024,120]
[345102568,1734018646439,-433.0,0.00024004,2]
[345102569,1734018646448,-1894.67,0.0002401,2]
[345102570,1734018646458,-1000.0,0.00024031,30]
[345102571,1734018646467,-12500.0,0.0002407,2]
[345102572,1734018646476,-1000.0,0.00024075,30]
[345102573,1734018646485,-12500.0,0.00024087,2]
[345102574,1734018646495,-428.09146526,0.00024106,2]
[345102575,1734018646504,-366.76159859,0.00024109,2]
[345102576,1734018646513,-500.0,0.00024109,2]
[345102577,1734018646523,-543.52,0.00024109,2]
[345102578,1734018646533,-500.0,0.00024109,2]
[345102579,1734018646543,-1000.0,0.00024118,30]
[345102580,1734018646552,-5000.0,0.00024138,2]
[345102581,1734018646561,-1000.0,0.00024162,30]
[345102582,1734018646571,-5000.0,0.00024178,2]
[345102583,1734018646581,-428.09146526,0.00024197,2]
[345102584,1734018646590,-2500.0,0.00024203,2]
[345102585,1734018646602,-1000.0,0.00024206,30]
[345102586,1734018646612,-1000.0,0.00024249,30]
[345102587,1734018646623,-740.07,0.00024256,2]
[345102588,1734018646633,-517.62,0.00024256,2]
[345102589,1734018646643,-592.4,0.00024256,2]
[345102590,1734018646652,-5000.0,0.0002426,2]
[345102591,1734018646661,-575.29,0.00024263,2]
[345102592,1734018646671,-577.37,0.00024263,2]
[345102593,1734018646682,-500.0,0.00024263,2]
[345102594,1734018646693,-1378.8,0.00024263,2]
[345102595,1734018646702,-1939.09,0.00024263,2]
[345102596,1734018646712,-2358.55,0.00024263,2]
[345102597,1734018646722,-771.53,0.00024263,2]
[345102598,1734018646731,-500.0,0.00024263,2]
[345102599,1734018646741,-1430.19,0.00024263,2]
[345102600,1734018646750,-800.0,0.00024274,2]
[345102601,1734018646760,-1000.0,0.00024293,30]
[345102602,1734018646769,-2000.0,0.00024295,120]
[345102603,1734018646779,-5000.0,0.00024297,2]
[345102604,1734018646788,-848.01001531,0.000243,2]
[345102605,1734018646797,-189.73881186,0.000243,2]
[345102606,1734018646807,-500.0,0.000243,2]
[345102607,1734018646816,-500.0,0.000243,2]
[345102608,1734018646826,-500.0,0.000243,2]
[345102609,1734018646836,-831.0242345,0.000243,2]
[345102610,1734018646846,-500.0,0.000243,2]
[345102611,1734018646856,-500.0,0.000243,2]
[345102612,1734018646866,-500.0,0.000243,2]
[345102613,1734018646876,-700.0,0.000243,2]
[345102614,1734018646885,-500.0,0.000243,2]
[345102615,1734018646895,-500.0,0.000243,2]
[345102616,1734018646904,-700.0,0.000243,2]
[345102617,1734018646913,-500.0,0.000243,2]
[345102618,1734018646936,-500.0,0.000243,2]
[345102619,1734018646946,-500.0,0.000243,2]
[345102620,1734018646955,-500.0,0.000243,2]
[345102621,1734018646969,-800.0,0.000243,2]
[345102622,1734018646979,-900.0,0.000243,2]
[345102623,1734018646989,-800.0,0.000243,8]
[345102624,1734018646999,-500.0,0.000243,2]
[345102625,1734018647008,-500.0,0.000243,2]
[345102626,1734018647018,-500.0,0.000243,2]
[345102627,1734018647029,-700.0,0.000243,2]
[345102628,1734018647046,-500.0,0.000243,2]
[345102629,1734018647055,-500.0,0.000243,2]
[345102630,1734018647077,-500.0,0.000243,2]
[345102631,1734018647087,-158.0,0.000243,10]
[345102632,1734018647096,-700.0,0.000243,2]
[345102633,1734018647106,-500.0,0.000243,2]
[345102634,1734018647115,-500.0,0.000243,2]
[345102635,1734018647125,-800.0,0.000243,2]
[345102636,1734018647135,-935.4007903,0.000243,2]
[345102637,1734018647144,-500.0,0.000243,2]
[345102638,1734018647153,-500.0,0.000243,2]
[345102639,1734018647163,-500.0,0.000243,2]
[345102640,1734018647179,-500.0,0.000243,2]
[345102641,1734018647188,-500.0,0.000243,2]
[345102642,1734018647198,-500.0,0.000243,2]
[345102643,1734018647208,-500.0,0.000243,2]
[345102644,1734018647217,-700.0,0.000243,2]
[345102645,1734018647226,-2500.0,0.00024313,2]
[345102646,1734018647236,-512.19,0.00024334,2]
[345102647,1734018647245,-1000.0,0.00024337,30]
[345102648,1734018647255,-5000.0,0.00024379,2]
[345102649,1734018647265,-1000.0,0.00024381,30]
[345102650,1734018647274,-363.61729113,0.00024383,2]
[345102651,1734018647283,-543.52,0.00024383,2]
[345102652,1734018647294,-500.0,0.00024383,2]
[345102653,1734018647312,-730.6335682,0.00024394,2]
[345102654,1734018647331,-3132.7424292,0.00024394,2]
[345102655,1734018647340,-60092.29688976,0.000244,14]
[345102656,1734018647349,-200.0,0.000244,2]
[345102657,1734018647358,-500.0,0.000244,14]
[345102658,1734018647367,-500.0,0.000244,14]
[345102659,1734018647376,-517.85892717,0.000244,14]
[345102660,1734018647385,-1100.0,0.000244,8]
[345102661,1734018647395,-2110.0,0.000244,2]
[345102662,1734018647403,-5000.0,0.00024411,2]
[345102663,1734018647412,-462.61,0.00024416,2]
[345102664,1734018647421,-338.20646002,0.0002442,2]
[345102665,1734018647431,-1000.0,0.00024424,30]
[345102666,1734018647440,-58162.0,0.00024438,2]
[345102667,1734018647449,-37171.0,0.00024438,2]
[345102668,1734018647458,-15582.0,0.00024438,2]
[345102669,1734018647467,-16810.35255008,0.0002445,2]
[345102670,1734018647476,-1000.0,0.00024468,30]
[345102671,1734018647486,-173.22292507,0.0002449,2]
[345102672,1734018647496,-1461416.46600567,0.000245,4]
[345102673,1734018647515,-1400.0,0.000245,8]
[345102674,1734018647526,-500.0,0.000245,4]
[345102675,1734018647535,-1000.0,0.00024512,30]
[345102676,1734018647545,-1979.5,0.00024513,2]
[345102677,1734018647556,-1276.5,0.00024518,2]
[345102678,1734018647565,-740.07,0.0002453,2]
[345102679,1734018647575,-517.62,0.0002453,2]
[345102680,1734018647584,-592.4,0.0002453,2]
[345102681,1734018647593,-575.29,0.00024537,2]
[345102682,1734018647604,-577.37,0.00024537,2]
[345102683,1734018647615,-500.0,0.00024537,2]
[345102684,1734018647626,-1378.8,0.00024537,2]
[345102685,1734018647636,-1939.09,0.00024537,2]
[345102686,1734018647645,-2358.55,0.00024537,2]
[345102687,1734018647655,-771.53,0.00024537,2]
[345102688,1734018647666,-500.0,0.00024537,2]
[345102689,1734018647676,-1430.19,0.00024537,2]
[345102690,1734018647685,-25000.0,0.0002454,2]
[345102691,1734018647697,-4498.13,0.00024541,2]
[345102692,1734018647706,-1430.49,0.00024549,2]
[345102693,1734018647716,-1000.0,0.00024556,30]
[345102694,1734018647725,-4260.36,0.00024563,2]
[345102695,1734018647735,-1607.81,0.00024575,2]
[345102696,1734018647746,-25000.0,0.00024594,2]
[345102697,1734018647757,-1000.0,0.00024599,30]
[345102698,1734018647767,-200.0,0.000246,8]
[345102699,1734018647776,-1000.0,0.00024643,30]
[345102700,1734018647786,-543.52,0.00024657,2]
[345102701,1734018647796,-500.0,0.00024657,2]
[345102702,1734018647806,-7365.23,0.00024657,120]
[345102703,1734018647816,-7365.23,0.00024657,120]
[345102704,1734018647825,-7365.23,0.00024657,120]
[345102705,1734018647835,-7365.23,0.00024657,120]
[345102706,1734018647847,-7365.23,0.00024657,120]
[345102707,1734018647856,-7365.23,0.00024657,120]
[345102708,1734018647866,-7365.23,0.00024657,120]
[345102709,1734018647876,-7365.23,0.00024657,120]
[345102710,1734018647885,-7365.23,0.00024657,120]
[345102711,1734018647896,-7365.23,0.00024657,120]
[345102712,1734018647906,-7365.23,0.00024657,120]
[345102713,1734018647915,-7365.23,0.00024657,120]
[345102714,1734018647925,-7365.23,0.00024657,120]
[345102715,1734018647934,-7365.23,0.00024657,120]
[345102716,1734018647943,-7365.23,0.00024657,120]
[345102717,1734018647953,-7365.23,0.00024657,120]
[345102718,1734018647963,-7365.23,0.00024657,120]
[345102719,1734018647972,-7365.23,0.00024657,120]
[345102720,1734018647981,-1000.0,0.00024657,89]
[345102721,1734018647991,-1000.0,0.00024657,89]
[345102722,1734018648000,-1000.0,0.00024657,89]
[345102723,1734018648010,-1000.0,0.00024657,89]
[345102724,1734018648019,-192.66252629,0.00024657,89]
[345102725,1734018648029,-1000.0,0.00024657,2]
[345102726,1734018648039,-412.83306612,0.00024657,2]
[345102727,1734018648049,-150.0,0.00024658,7]
[345102728,1734018648059,-8676.77,0.00024658,4]
[345102729,1734018648069,-1000.0,0.00024658,2]
[345102730,1734018648079,-1000.0,0.00024665,2]
[345102731,1734018648089,-5000.0,0.0002467,2]
[345102732,1734018648099,-150.5,0.0002467,120]
[345102733,1734018648109,-417.0,0.0002467,120]
[345102734,1734018648119,-417.0,0.0002467,120]
[345102735,1734018648129,-247.66,0.0002468,30]
[345102736,1734018648140,-150.5,0.0002468,120]
[345102737,1734018648150,-417.0,0.0002468,120]
[345102738,1734018648160,-150.5,0.0002468,120]
[345102739,1734018648170,-212.34,0.0002468,120]
[345102740,1734018648180,-417.0,0.0002468,120]
[345102741,1734018648189,-417.0,0.0002468,120]
[345102742,1734018648199,-424.4,0.0002468,120]
[345102743,1734018648209,-5000.0,0.00024684,2]
[345102744,1734018648218,-5000.0,0.00024686,2]
[345102745,1734018648227,-5000.0,0.00024686,2]
[345102746,1734018648238,-1000.0,0.00024687,30]
[345102747,1734018648248,-150.5,0.0002469,30]
[345102748,1734018648258,-150.5,0.0002469,120]
[345102749,1734018648267,-417.0,0.0002469,120]
[345102750,1734018648277,-150.5,0.0002469,120]
[345102751,1734018648287,-150.5,0.0002469,120]
[345102752,1734018648296,-417.0,0.0002469,120]
[345102753,1734018648306,-417.0,0.0002469,120]
[345102754,1734018648315,-417.0,0.0002469,120]
[345102755,1734018648325,-7426.9,0.000247,7]
[345102756,1734018648334,-42543.20874064,0.000247,30]
[345102757,1734018648345,-400.0,0.000247,2]
[345102758,1734018648357,-1200.0,0.000247,2]
[345102759,1734018648367,-200.0,0.000247,9]
[345102760,1734018648377,-5000.0,0.00024707,2]
[345102761,1734018648387,-1000.0,0.0002473,30]
[345102762,1734018648396,-5000.0,0.00024743,2]
[345102763,1734018648406,-5000.0,0.00024745,2]
[345102764,1734018648419,-5000.0,0.00024755,2]
[345102765,1734018648428,-5000.0,0.00024756,2]
[345102766,1734018648499,-2543.87,0.00024764,2]
[345102767,1734018648508,-500.0,0.00024774,4]
[345102768,1734018648518,-1000.0,0.00024774,30]
[345102769,1734018648527,-2543.87,0.00024797,2]
[345102770,1734018648537,-200.0,0.000248,9]
[345102771,1734018648547,-740.07,0.00024804,2]
[345102772,1734018648557,-517.62,0.00024804,2]
[345102773,1734018648566,-592.4,0.00024804,2]
[345102774,1734018648576,-5000.0,0.00024808,2]
[345102775,1734018648586,-2183.79,0.00024811,2]
[345102776,1734018648595,-575.29,0.00024811,2]
[345102777,1734018648611,-577.37,0.00024811,2]
[345102778,1734018648621,-500.0,0.00024811,2]
[345102779,1734018648631,-1378.8,0.00024811,2]
[345102780,1734018648643,-1939.09,0.00024811,2]
[345102781,1734018648652,-2358.55,0.00024811,2]
[345102782,1734018648662,-7365.23,0.00024811,120]
[345102783,1734018648671,-771.53,0.00024811,2]
[345102784,1734018648681,-500.0,0.00024811,2]
[345102785,1734018648690,-1430.19,0.00024811,2]
[345102786,1734018648701,-1000.0,0.00024818,30]
[345102787,1734018648710,-435.34,0.00024822,2]
[345102788,1734018648720,-150.0,0.00024822,2]
[345102789,1734018648729,-150.0,0.00024822,2]
[345102790,1734018648738,-150.0,0.00024822,2]
[345102791,1734018648748,-150.0,0.00024822,2]
[345102792,1734018648758,-150.0,0.00024822,2]
[345102793,1734018648768,-150.0,0.00024822,2]
[345102794,1734018648778,-150.0,0.00024822,2]
[345102795,1734018648790,-150.0,0.00024822,2]
[345102796,1734018648799,-150.0,0.00024822,2]
[345102797,1734018648809,-150.0,0.00024822,2]
[345102798,1734018648819,-5000.0,0.0002484,2]
[345102799,1734018648828,-150.0,0.00024841,120]
[345102800,1734018648838,-150.0,0.00024859,2]
[345102801,1734018648848,-1000.0,0.00024862,30]
[345102802,1734018648858,-5000.0,0.00024867,2]
[345102803,1734018648868,-2424.98,0.00024868,2]
[345102804,1734018648879,-4000.0,0.00024876,31]
[345102805,1734018648888,-1833.74616617,0.00024899,2]
[345102806,1734018648898,-167.86451008,0.00024899,2]
[345102807,1734018648908,-243.58594625,0.00024899,2]
[345102808,1734018648917,-1222.91770007,0.00024899,2]
[345102809,1734018648927,-1833.74616615,0.000249,2]
[345102810,1734018648937,-100000.0,0.000249,7]
[345102811,1734018648946,-182.92111593,0.000249,7]
[345102812,1734018648956,-189.73881186,0.000249,2]
[345102813,1734018648966,-200.0,0.000249,9]
[345102814,1734018648976,-2110.0,0.000249,2]
[345102815,1734018648985,-157.04419773,0.000249,7]
[345102816,1734018648995,-157.04419773,0.000249,7]
[345102817,1734018649004,-157.04419773,0.000249,7]
[345102818,1734018649015,-157.04419773,0.000249,7]
[345102819,1734018649024,-157.04419773,0.000249,7]
[345102820,1734018649035,-157.04419773,0.000249,7]
[345102821,1734018649046,-157.04419773,0.000249,7]
[345102822,1734018649057,-157.04419773,0.000249,7]
[345102823,1734018649068,-157.04419773,0.000249,7]
[345102824,1734018649083,-157.04419773,0.000249,7]
[345102825,1734018649102,-157.04419773,0.000249,7]
[345102826,1734018649113,-157.04419773,0.000249,7]
[345102827,1734018649123,-157.04419773,0.000249,7]
[345102828,1734018649133,-157.04419773,0.000249,7]
[345102829,1734018649146,-157.04,0.000249,7]
[345102830,1734018649155,-176.67472245,0.000249,7]
[345102831,1734018649166,-176.67472245,0.000249,7]
[345102832,1734018649183,-176.67472245,0.000249,7]
[345102833,1734018649192,-176.67472245,0.000249,7]
[345102834,1734018649203,-176.67472245,0.000249,7]
[345102835,1734018649213,-176.67472245,0.000249,7]
[345102836,1734018649222,-176.67472245,0.000249,7]
[345102837,1734018649232,-176.67472245,0.000249,7]
[345102838,1734018649242,-176.67472245,0.000249,7]
[345102839,1734018649252,-176.67472245,0.000249,7]
[345102840,1734018649261,-176.67472245,0.000249,7]
[345102841,1734018649271,-176.67472245,0.000249,7]
[345102842,1734018649281,-176.67472245,0.000249,7]
[345102843,1734018649291,-1833.74616615,0.000249,2]
[345102844,1734018649301,-52758.1443178,0.000249,2]
[345102845,1734018649311,-1000.0,0.00024905,30]
[345102846,1734018649321,-543.52,0.00024931,2]
[345102847,1734018649331,-202.33,0.00024931,2]
[345102848,1734018649341,-5000.0,0.00024933,2]
[345102849,1734018649351,-176.67472245,0.00024934,7]
[345102850,1734018649361,-1000.0,0.00024949,30]
[345102851,1734018649371,-2500.0,0.00024953,2]
[345102852,1734018649381,-25000.0,0.00024954,2]
[345102853,1734018649391,-5000.0,0.00024965,2]
[345102854,1734018649401,-253.93,0.0002497,120]
[345102855,1734018649411,-163.0,0.0002497,120]
[345102856,1734018649420,-372.0,0.0002497,120]
[345102857,1734018649429,-163.0,0.0002497,120]
[345102858,1734018649438,-372.0,0.0002497,120]
[345102859,1734018649448,-603.0,0.0002497,30]
[345102860,1734018649458,-603.0,0.0002497,30]
[345102861,1734018649467,-150.5,0.0002497,120]
[345102862,1734018649477,-150.5,0.0002497,120]
[345102863,1734018649487,-163.0,0.0002498,120]
[345102864,1734018649496,-372.0,0.0002498,120]
[345102865,1734018649509,-163.0,0.0002498,120]
[345102866,1734018649519,-372.0,0.0002498,120]
[345102867,1734018649529,-163.0,0.0002498,120]
[345102868,1734018649538,-372.0,0.0002498,120]
[345102869,1734018649548,-164.11,0.0002498,120]
[345102870,1734018649558,-372.44,0.0002498,120]
[345102871,1734018649568,-603.0,0.0002498,30]
[345102872,1734018649577,-603.0,0.0002498,30]
[345102873,1734018649587,-603.0,0.0002498,30]
[345102874,1734018649596,-606.58,0.0002498,30]
[345102875,1734018649607,-150.5,0.0002498,120]
[345102876,1734018649633,-150.5,0.0002498,120]
[345102877,1734018649643,-173.53,0.0002498,120]
[345102878,1734018649653,-3132.7424292,0.00024982,2]
[345102879,1734018649666,-730.6335682,0.00024983,2]
[345102880,1734018649676,-730.6335682,0.00024983,2]
[345102881,1734018649686,-730.6335682,0.00024983,2]
[345102882,1734018649696,-730.6335682,0.00024983,2]
[345102883,1734018649706,-730.6335682,0.00024983,2]
[345102884,1734018649717,-3132.7424292,0.00024983,2]
[345102885,1734018649726,-3132.7424292,0.00024983,2]
[345102886,1734018649736,-3132.7424292,0.00024983,2]
[345102887,1734018649746,-3132.7424292,0.00024983,2]
[345102888,1734018649756,-163.0,0.0002499,120]
[345102889,1734018649766,-372.0,0.0002499,120]
[345102890,1734018649776,-163.0,0.0002499,120]
[345102891,1734018649786,-372.0,0.0002499,120]
[345102892,1734018649796,-163.0,0.0002499,120]
[345102893,1734018649806,-372.0,0.0002499,120]
[345102894,1734018649816,-163.0,0.0002499,120]
[345102895,1734018649825,-372.0,0.0002499,120]
[345102896,1734018649834,-603.0,0.0002499,30]
[345102897,1734018649843,-603.0,0.0002499,30]
[345102898,1734018649852,-603.0,0.0002499,30]
[345102899,1734018649861,-603.0,0.0002499,30]
[345102900,1734018649871,-150.5,0.0002499,120]
[345102901,1734018649880,-150.5,0.0002499,120]
[345102902,1734018649890,-150.5,0.0002499,120]
[345102903,1734018649900,-1000.0,0.00024993,30]
[345102904,1734018649909,-300.0,0.00024997,10]
[345102905,1734018649918,-300.0,0.00024997,10]
[345102906,1734018649927,-300.0,0.00024997,10]
[345102907,1734018649936,-300.0,0.00024997,10]
[345102908,1734018649945,-300.0,0.00024997,10]
[345102909,1734018649954,-300.0,0.00024997,10]
[345102910,1734018649963,-300.0,0.00024997,10]
[345102911,1734018649973,-300.0,0.00024997,10]
[345102912,1734018649983,-300.0,0.00024997,10]
[345102913,1734018649991,-300.0,0.00024997,10]
[345102914,1734018650001,-300.0,0.00024997,10]
[345102915,1734018650010,-300.0,0.00024997,10]
[345102916,1734018650019,-300.0,0.00024997,10]
[345102917,1734018650028,-300.0,0.00024997,10]
[345102918,1734018650038,-300.0,0.00024997,10]
[345102919,1734018650047,-666.0,0.00024997,2]
[345102920,1734018650057,-300.0,0.00024997,10]
[345102921,1734018650067,-300.0,0.00024998,10]
[345102922,1734018650077,-300.0,0.00024998,10]
[345102923,1734018650087,-300.0,0.00024998,10]
[345102924,1734018650096,-300.0,0.00024998,10]
[345102925,1734018650106,-300.0,0.00024998,10]
[345102926,1734018650115,-300.0,0.00024998,10]
[345102927,1734018650125,-300.0,0.00024998,10]
[345102928,1734018650141,-300.0,0.00024998,10]
[345102929,1734018650160,-300.0,0.00024998,10]
[345102930,1734018650169,-300.0,0.00024998,10]
[345102931,1734018650178,-300.0,0.00024998,10]
[345102932,1734018650188,-300.0,0.00024998,10]
[345102933,1734018650196,-300.0,0.00024998,10]
[345102934,1734018650206,-300.0,0.00024998,10]
[345102935,1734018650215,-666.0,0.00024998,2]
[345102936,1734018650225,-281.25588101,0.00024998,10]
[345102937,1734018650235,-1812335.69900363,0.00024998,2]
[345102938,1734018650244,-300.0,0.00024999,10]
[345102939,1734018650254,-300.0,0.00024999,10]
[345102940,1734018650263,-300.0,0.00024999,10]
[345102941,1734018650273,-300.0,0.00024999,10]
[345102942,1734018650283,-300.0,0.00024999,10]
[345102943,1734018650292,-301.33179219,0.00024999,10]
[345102944,1734018650302,-300.0,0.00024999,10]
[345102945,1734018650312,-300.0,0.00024999,10]
[345102946,1734018650321,-300.0,0.00024999,10]
[345102947,1734018650331,-300.0,0.00024999,10]
[345102948,1734018650340,-392.49562646,0.00024999,10]
[345102949,1734018650350,-78070.09,0.00024999,120]
[345102950,1734018650359,-11078.50550476,0.00025,3]
[345102951,1734018650368,-6947.47261074,0.00025,2]
[345102952,1734018650378,-1222.21587234,0.00025,3]
[345102953,1734018650387,-120552.80618627,0.00025,2]
[345102954,1734018650398,-102275.51404696,0.00025,2]
[345102955,1734018650407,-1589.91059985,0.00025,2]
[345102956,1734018650418,-254.18068283,0.00025,2]
[345102957,1734018650427,-150.0,0.00025,60]
[345102958,1734018650437,-2906.39469818,0.00025,2]
[345102959,1734018650447,-200.00716018,0.00025,2]
[345102960,1734018650457,-6000.0,0.00025,30]
[345102961,1734018650467,-2000.0,0.00025,2]
[345102962,1734018650477,-7041.0,0.00025,10]
[345102963,1734018650487,-11783.26866107,0.00025,2]
[345102964,1734018650498,-300.0,0.00025,30]
[345102965,1734018650510,-14775.66995297,0.00025,2]
[345102966,1734018650520,-150.0,0.00025,30]
[345102967,1734018650530,-588.0,0.00025,2]
[345102968,1734018650541,-2400.0,0.00025,30]
[345102969,1734018650550,-150.0,0.00025,2]
[345102970,1734018650560,-1988.83060047,0.00025,120]
[345102971,1734018650570,-593.2343881,0.00025,120]
[345102972,1734018650580,-9496.44,0.00025,30]
[345102973,1734018650590,-248.60539677,0.00025,120]
[345102974,1734018650601,-2000.0,0.00025,120]
[345102975,1734018650614,-10268450.79403493,0.00025,120]
[345102976,1734018650817,-11641.46952017,0.00025,120]
[345102977,1734018650906,-9985.0,0.00025,120]
[345102978,1734018650966,-578.96629146,0.000249,2]
[345102979,1734018650981,-643.95140861,0.000249,2]
[345102980,1734018650990,-1226.54234139,0.00025,120]
[345102981,1734018651002,-4898.83069815,0.00025,120]
[345102982,1734018651014,-590.622258,0.00025,120]
[345102983,1734018651026,-582.34709152,0.00025,120]
[345102984,1734018651037,-1138.08,0.00025,120]
[345102985,1734018651070,-43143.81434648,0.00025,120]
[345102986,1734018651082,-3602.0,0.00025,120]
[345102987,1734018651127,-367.0,0.00025,120]
[345102988,1734018651139,-5483.72845317,0.00025,120]
[345102989,1734018651150,-11919.69180004,0.00025,120]
[345102990,1734018651162,-52428.99660021,0.00025,120]
[345102991,1734018651193,-1190.52032871,0.00025,120]
[345102992,1734018651205,-326.54028145,0.00025,120]
[345102993,1734018651216,-39768.7151244,0.00025,120]
[345102994,1734018651229,-2317.99999988,0.00025,120]
[345102995,1734018651240,-2021.04842625,0.00025,120]
[345102996,1734018651251,-1202531.59148868,0.00025,120]
[345102997,1734018651263,-33566.32167123,0.00025,120]
[345102998,1734018651275,-11220.0,0.00025,120]
[345102999,1734018651291,-139991.17193692,0.00025,120]
[345103000,1734018651302,-179277.6455701,0.00025,120]
[345103001,1734018651314,-2514.52793331,0.00025,120]
[345103017,1734019545932,-343.99,0.000192,31]
[345103018,1734019545957,-343.99,0.000192,31]
[345103019,1734019545985,-343.99,0.000192,31]
[345103020,1734019546015,-343.99,0.000192,31]
[345103021,1734019546044,-343.99,0.000192,31]
[345103022,1734019546072,-343.99,0.000192,31]
[345103023,1734019546101,-136.06,0.000192,31]
[345103024,1734019573742,503.56242096,0.0001,2]
[345103025,1734019747155,-335.43757904,0.0001,2]
[345103026,1734019747176,-450.0,0.00013,2]
[345103027,1734019747196,-500.0,0.00015,2]